fUSD/lending_fUSD_20240506
["ID","MTS","AMOUNT","RATE_DAILY","PERIOD"]
[326496308,1715009471428,-582.73,0.00025205,4]
[326496309,1715009471437,-570.6,0.00025205,4]
[326496310,1715009471446,-670.25,0.00025205,4]
[326496311,1715009471456,-2515.34,0.00025205,4]
[326496312,1715009471466,-1320.69,0.00025205,4]
[326496313,1715009471475,-500.0,0.00025205,4]
[326496314,1715009471485,-500.0,0.00025205,4]
[326496315,1715009471496,-610.51,0.00025205,4]
[326496316,1715009471505,-1710.54,0.00025205,4]
[326496317,1715009471515,-561.35,0.00025205,4]
[326496318,1715009471525,-500.0,0.00025205,4]
[326496319,1715009471534,-500.0,0.00025205,4]
[326496320,1715009471547,-606.88,0.00025205,4]
[326496321,1715009471557,-824.5,0.00025205,4]
[326496322,1715009471567,-500.0,0.00025205,4]
[326496323,1715009471577,-1149.21,0.00025205,4]
[326496324,1715009471588,-500.0,0.00025205,4]
[326496325,1715009471597,-500.0,0.00025205,4]
[326496326,1715009471607,-938.31,0.00025205,4]
[326496327,1715009471616,-625.3,0.00025205,4]
[326496328,1715009471626,-1216.27,0.00025205,4]
[326496329,1715009471636,-561.17,0.00025205,4]
[326496330,1715009471646,-1672.06,0.00025205,4]
[326496331,1715009471656,-500.0,0.00025205,4]
[326496332,1715009471665,-500.0,0.00025205,4]
[326496333,1715009471675,-500.0,0.00025205,4]
[326496334,1715009471685,-793.06,0.00025205,4]
[326496335,1715009471700,-500.0,0.00025205,4]
[326496336,1715009471710,-1103.72,0.00025205,4]
[326496337,1715009471719,-1292.01,0.00025205,4]
[326496338,1715009471729,-443.66668416,0.00025205,4]
[326496339,1715009471741,-757.91,0.00025205,4]
[326496340,1715009471751,-500.0,0.00025205,4]
[326496341,1715009471760,-170.80415733,0.00025205,4]
[326496342,1715009471774,-558.78,0.00025205,4]
[326496343,1715009471784,-504.58,0.00025205,4]
[326496344,1715009471793,-861.74,0.00025205,4]
[326496345,1715009471803,-500.0,0.00025205,4]
[326496346,1715009471814,-500.0,0.00025205,4]
[326496347,1715009471823,-1023.77,0.00025205,4]
[326496348,1715009471833,-963.88,0.00025205,2]
[326496349,1715009471843,-500.0,0.00025205,4]
[326496350,1715009471853,-500.0,0.00025205,4]
[326496351,1715009471862,-766.91,0.00025205,4]
[326496352,1715009471872,-500.0,0.00025205,4]
[326496353,1715009471882,-500.0,0.00025205,4]
[326496354,1715009471892,-500.0,0.00025205,4]
[326496355,1715009471901,-1022.53,0.00025205,4]
[326496356,1715009471911,-848.02,0.00025205,4]
[326496357,1715009471920,-1153.71,0.00025205,4]
[326496358,1715009471930,-500.0,0.00025205,4]
[326496359,1715009471941,-500.0,0.00025205,4]
[326496360,1715009471950,-596.69,0.00025205,4]
[326496361,1715009471960,-1178.81,0.00025205,4]
[326496362,1715009471970,-846.09,0.00025205,4]
[326496363,1715009471979,-500.0,0.00025205,4]
[326496364,1715009471990,-709.43,0.00025205,4]
[326496365,1715009472000,-683.6,0.00025205,4]
[326496366,1715009472009,-1009.77,0.00025205,4]
[326496367,1715009472019,-1087.36,0.00025205,4]
[326496368,1715009472030,-500.0,0.00025205,4]
[326496369,1715009472040,-500.0,0.00025205,4]
[326496370,1715009472050,-605.45,0.00025205,4]
[326496371,1715009472060,-500.0,0.00025205,4]
[326496372,1715009472070,-666.22,0.00025205,4]
[326496373,1715009472079,-500.0,0.00025205,4]
[326496374,1715009472089,-649.19555306,0.00025205,4]
[326496375,1715009472099,-500.0,0.00025205,4]
[326496376,1715009472108,-1015.82,0.00025205,4]
[326496377,1715009472135,-773.12,0.00025205,4]
[326496378,1715009472147,-885.32,0.00025205,4]
[326496379,1715009472156,-1066.8,0.00025205,4]
[326496380,1715009472166,-500.0,0.00025205,4]
[326496381,1715009472176,-1733.47,0.00025205,4]
[326496382,1715009472186,-661.74,0.00025205,4]
[326496383,1715009472198,-500.0,0.00025205,4]
[326496384,1715009472208,-859.01,0.00025205,4]
[326496385,1715009472218,-500.0,0.00025205,4]
[326496386,1715009472227,-500.0,0.00025205,4]
[326496387,1715009472238,-500.0,0.00025205,4]
[326496388,1715009472249,-911.16,0.00025205,4]
[326496389,1715009472259,-1130.21,0.00025205,4]
[326496390,1715009472269,-500.0,0.00025205,4]
[326496391,1715009472277,-811.36,0.00025205,4]
[326496392,1715009472286,-500.0,0.00025205,4]
[326496393,1715009472296,-500.0,0.00025205,4]
[326496394,1715009472306,-500.0,0.00025205,4]
[326496395,1715009472316,-705.39,0.00025205,4]
[326496396,1715009472326,-500.0,0.00025205,4]
[326496397,1715009472335,-500.0,0.00025205,4]
[326496398,1715009472346,-500.0,0.00025205,4]
[326496399,1715009472356,-932.34,0.00025205,4]
[326496400,1715009472366,-500.0,0.00025205,4]
[326496401,1715009472376,-500.0,0.00025205,4]
[326496402,1715009472386,-500.0,0.00025205,4]
[326496403,1715009472396,-1431.67,0.00025205,4]
[326496404,1715009472407,-700.06,0.00025205,4]
[326496405,1715009472417,-749.39,0.00025205,4]
[326496406,1715009472426,-500.0,0.00025205,4]
[326496407,1715009472436,-767.02,0.00025205,4]
[326496408,1715009472446,-1186.32,0.00025205,4]
[326496409,1715009472456,-500.0,0.00025205,4]
[326496410,1715009472467,-1083.13,0.00025205,4]
[326496411,1715009472478,-659.71,0.00025205,4]
[326496412,1715009472490,-863.45,0.00025205,4]
[326496413,1715009472500,-500.0,0.00025205,4]
[326496414,1715009472510,-571.63,0.00025205,4]
[326496415,1715009472520,-801.67,0.00025205,4]
[326496416,1715009472530,-1890.91,0.00025205,4]
[326496417,1715009472540,-653.74,0.00025205,4]
[326496418,1715009472550,-961.58,0.00025205,4]
[326496419,1715009472563,-500.0,0.00025205,4]
[326496420,1715009472573,-500.0,0.00025205,4]
[326496421,1715009472582,-500.0,0.00025205,4]
[326496422,1715009472592,-872.26,0.00025205,4]
[326496423,1715009472602,-512.98,0.00025205,4]
[326496424,1715009472612,-1099.89,0.00025205,4]
[326496425,1715009472621,-502.64,0.00025205,4]
[326496426,1715009472631,-584.09,0.00025205,4]
[326496427,1715009472641,-500.0,0.00025205,4]
[326496428,1715009472651,-1218.65,0.00025205,4]
[326496429,1715009472662,-950.18,0.00025205,4]
[326496430,1715009472672,-658.39,0.00025205,4]
[326496431,1715009472681,-1865.45,0.00025205,4]
[326496432,1715009472691,-585.65,0.00025205,4]
[326496433,1715009472700,-500.0,0.00025205,4]
[326496434,1715009472710,-685.57,0.00025205,4]
[326496435,1715009472720,-606.07,0.00025205,4]
[326496436,1715009472730,-500.0,0.00025205,4]
[326496437,1715009472742,-500.0,0.00025205,4]
[326496438,1715009472751,-500.0,0.00025205,4]
[326496439,1715009472761,-1273.33,0.00025205,4]
[326496440,1715009472773,-500.0,0.00025205,4]
[326496441,1715009472783,-1023.23,0.00025205,4]
[326496442,1715009472792,-500.0,0.00025205,4]
[326496443,1715009472802,-667.2,0.00025205,4]
[326496444,1715009472814,-512.57,0.00025205,4]
[326496445,1715009472828,-500.0,0.00025205,4]
[326496446,1715009472838,-1152.8,0.00025205,4]
[326496447,1715009472849,-500.0,0.00025205,4]
[326496448,1715009472860,-500.0,0.00025205,4]
[326496449,1715009472870,-500.0,0.00025205,4]
[326496450,1715009472879,-823.83,0.00025205,4]
[326496451,1715009472889,-999.36,0.00025205,4]
[326496452,1715009472898,-500.0,0.00025205,4]
[326496453,1715009472907,-731.34,0.00025205,4]
[326496454,1715009472916,-1085.03,0.00025205,4]
[326496455,1715009472926,-1504.18,0.00025205,4]
[326496456,1715009472935,-500.0,0.00025205,4]
[326496457,1715009472944,-1191.46,0.00025205,4]
[326496458,1715009472953,-1258.68,0.00025205,4]
[326496459,1715009472963,-829.17,0.00025205,4]
[326496460,1715009472973,-828.7,0.00025205,4]
[326496461,1715009472982,-1268.18,0.00025205,4]
[326496462,1715009472993,-500.0,0.00025205,4]
[326496463,1715009473003,-500.0,0.00025205,4]
[326496464,1715009473012,-1173.62,0.00025205,4]
[326496465,1715009473022,-500.0,0.00025205,4]
[326496466,1715009473031,-465.20921792,0.00025205,4]
[326496467,1715009473041,-2312.7,0.00025205,4]
[326496468,1715009473051,-500.0,0.00025205,4]
[326496469,1715009473060,-1242.11,0.00025205,4]
[326496470,1715009473070,-500.0,0.00025205,4]
[326496471,1715009473080,-1195.8,0.00025205,4]
[326496472,1715009473090,-1015.72,0.00025205,4]
[326496473,1715009473099,-500.0,0.00025205,4]
[326496474,1715009473109,-500.0,0.00025205,4]
[326496475,1715009473120,-500.0,0.00025205,4]
[326496476,1715009473130,-1102.49,0.00025205,4]
[326496477,1715009473140,-500.0,0.00025205,4]
[326496478,1715009473149,-500.0,0.00025205,4]
[326496479,1715009473159,-500.0,0.00025205,4]
[326496480,1715009473168,-500.0,0.00025205,4]
[326496481,1715009473178,-500.0,0.00025205,4]
[326496482,1715009473187,-653.47,0.00025205,4]
[326496483,1715009473196,-1188.97,0.00025205,4]
[326496484,1715009473206,-1414.06,0.00025205,4]
[326496485,1715009473216,-1137.47,0.00025205,4]
[326496486,1715009473225,-500.0,0.00025205,4]
[326496487,1715009473236,-561.2,0.00025205,4]
[326496488,1715009473249,-720.29,0.00025205,4]
[326496489,1715009473259,-616.26,0.00025205,4]
[326496490,1715009473269,-500.0,0.00025205,4]
[326496491,1715009473278,-923.54,0.00025205,4]
[326496492,1715009473288,-680.79,0.00025205,4]
[326496493,1715009473298,-682.14,0.00025205,4]
[326496494,1715009473307,-725.5,0.00025205,4]
[326496495,1715009473317,-1768.76,0.00025205,4]
[326496496,1715009473327,-1143.37,0.00025205,4]
[326496497,1715009473337,-500.0,0.00025205,4]
[326496498,1715009473347,-1667.98,0.00025205,4]
[326496499,1715009473356,-500.0,0.00025205,4]
[326496500,1715009473366,-518.34,0.00025205,4]
[326496501,1715009473375,-500.0,0.00025205,4]
[326496502,1715009473387,-500.0,0.00025205,4]
[326496503,1715009473399,-500.0,0.00025205,4]
[326496504,1715009473409,-500.0,0.00025205,4]
[326496505,1715009473417,-762.11,0.00025205,4]
[326496506,1715009473427,-500.0,0.00025205,4]
[326496507,1715009473436,-500.0,0.00025205,4]
[326496508,1715009473446,-235.9429563,0.00025205,4]
[326496509,1715009473456,-794.05,0.00025205,4]
[326496510,1715009473466,-533.1,0.00025205,4]
[326496511,1715009473475,-500.0,0.00025205,4]
[326496512,1715009473486,-500.0,0.00025205,4]
[326496513,1715009473495,-1008.18,0.00025205,4]
[326496514,1715009473505,-500.0,0.00025205,4]
[326496515,1715009473514,-500.0,0.00025205,4]
[326496516,1715009473523,-1503.41,0.00025205,4]
[326496517,1715009473533,-500.0,0.00025205,4]
[326496518,1715009473543,-510.49,0.00025205,4]
[326496519,1715009473552,-736.54,0.00025205,4]
[326496520,1715009473562,-640.38704441,0.00025205,4]
[326496521,1715009473572,-565.5,0.00025205,4]
[326496522,1715009473582,-500.0,0.00025205,4]
[326496523,1715009473591,-500.0,0.00025205,4]
[326496524,1715009473609,-1400.66,0.00025205,4]
[326496525,1715009473620,-291.60206523,0.00025205,4]
[326496526,1715009473630,-500.0,0.00025205,4]
[326496527,1715009473640,-500.0,0.00025205,4]
[326496528,1715009473650,-1644.54,0.00025205,4]
[326496529,1715009473660,-1912.03,0.00025205,4]
[326496530,1715009473670,-500.0,0.00025205,4]
[326496531,1715009473680,-500.0,0.00025205,4]
[326496532,1715009473690,-655.28,0.00025205,4]
[326496533,1715009473699,-485.79932154,0.00025205,4]
[326496534,1715009473709,-713.17,0.00025205,4]
[326496535,1715009473718,-500.0,0.00025205,4]
[326496536,1715009473728,-2344.78,0.00025205,4]
[326496537,1715009473738,-1420.44,0.00025205,4]
[326496538,1715009473748,-2190.6,0.00025205,4]
[326496539,1715009473757,-1574.93,0.00025205,4]
[326496540,1715009473770,-500.0,0.00025205,4]
[326496541,1715009473780,-500.0,0.00025205,4]
[326496542,1715009473789,-557.66,0.00025205,4]
[326496543,1715009473798,-573.7,0.00025205,4]
[326496544,1715009473808,-1955.19,0.00025205,4]
[326496545,1715009473819,-1023.72,0.00025205,4]
[326496546,1715009473828,-997.83,0.00025205,4]
[326496547,1715009473842,-525.55,0.00025205,4]
[326496548,1715009473854,-1896.66,0.00025205,4]
[326496549,1715009473864,-513.05909367,0.00025205,4]
[326496550,1715009473874,-1816.67,0.00025205,4]
[326496551,1715009473885,-500.0,0.00025205,4]
[326496552,1715009473894,-500.0,0.00025205,4]
[326496553,1715009473904,-500.0,0.00025205,4]
[326496554,1715009473915,-1391.1,0.00025205,4]
[326496555,1715009473925,-1352.3,0.00025205,4]
[326496556,1715009473935,-1707.62,0.00025205,4]
[326496557,1715009473946,-766.8,0.00025205,4]
[326496558,1715009473956,-1194.6,0.00025205,4]
[326496559,1715009473967,-648.26,0.00025205,4]
[326496560,1715009473977,-1321.73,0.00025205,4]
[326496561,1715009473989,-452.20259254,0.00025205,4]
[326496562,1715009473999,-500.0,0.00025205,4]
[326496563,1715009474010,-500.0,0.00025205,4]
[326496564,1715009474020,-500.0,0.00025205,4]
[326496565,1715009474030,-1270.81,0.00025205,4]
[326496566,1715009474040,-500.0,0.00025205,4]
[326496567,1715009474050,-521.21,0.00025205,4]
[326496568,1715009474060,-708.11,0.00025205,4]
[326496569,1715009474070,-1129.74,0.00025205,4]
[326496570,1715009474080,-989.92,0.00025205,4]
[326496571,1715009474090,-500.0,0.00025205,4]
[326496572,1715009474100,-500.0,0.00025205,4]
[326496573,1715009474111,-500.0,0.00025205,4]
[326496574,1715009474120,-936.25,0.00025205,4]
[326496575,1715009474130,-500.0,0.00025205,4]
[326496576,1715009474144,-553.87,0.00025205,4]
[326496577,1715009474154,-1963.0,0.00025205,4]
[326496578,1715009474164,-946.3,0.00025205,4]
[326496579,1715009474178,-1073.3,0.00025205,4]
[326496580,1715009474189,-1097.27,0.00025205,4]
[326496581,1715009474200,-500.0,0.00025205,4]
[326496582,1715009474210,-500.0,0.00025205,4]
[326496583,1715009474221,-797.87,0.00025205,4]
[326496584,1715009474232,-688.65,0.00025205,4]
[326496585,1715009474244,-1744.5,0.00025205,4]
[326496586,1715009474255,-1285.63,0.00025205,4]
[326496587,1715009474266,-1410.99,0.00025205,4]
[326496588,1715009474277,-500.0,0.00025205,4]
[326496589,1715009474287,-500.0,0.00025205,4]
[326496590,1715009474297,-640.4,0.00025205,4]
[326496591,1715009474307,-973.55,0.00025205,4]
[326496592,1715009474318,-191.06623538,0.00025205,4]
[326496593,1715009474329,-1317.55,0.00025205,4]
[326496594,1715009474340,-628.92,0.00025205,4]
[326496595,1715009474350,-500.0,0.00025205,4]
[326496596,1715009474360,-220.7,0.00025205,4]
[326496597,1715009474377,-500.0,0.00025205,4]
[326496598,1715009474388,-605.04,0.00025205,4]
[326496599,1715009474400,-659.35,0.00025205,4]
[326496600,1715009474411,-1265.18,0.00025205,4]
[326496601,1715009474421,-500.0,0.00025205,4]
[326496602,1715009474432,-500.0,0.00025205,4]
[326496603,1715009474443,-1161.66,0.00025205,4]
[326496604,1715009474453,-1571.11,0.00025205,4]
[326496605,1715009474463,-705.26,0.00025205,4]
[326496606,1715009474474,-500.0,0.00025205,4]
[326496607,1715009474484,-879.88,0.00025205,4]
[326496608,1715009474495,-1058.68,0.00025205,4]
[326496609,1715009474507,-1272.13,0.00025205,4]
[326496610,1715009474517,-812.5,0.00025205,4]
[326496611,1715009474527,-500.0,0.00025205,4]
[326496612,1715009474538,-574.27,0.00025205,4]
[326496613,1715009474548,-1241.72,0.00025205,4]
[326496614,1715009474559,-1077.12,0.00025205,4]
[326496615,1715009474569,-500.0,0.00025205,4]
[326496616,1715009474579,-2261.22,0.00025205,4]
[326496617,1715009474589,-500.0,0.00025205,4]
[326496618,1715009474599,-718.28,0.00025205,4]
[326496619,1715009474610,-1834.15,0.00025205,4]
[326496620,1715009474620,-1337.7,0.00025205,4]
[326496621,1715009474631,-1314.63,0.00025205,4]
[326496622,1715009474641,-506.02,0.00025205,4]
[326496623,1715009474652,-593.54,0.00025205,4]
[326496624,1715009474663,-2552.83,0.00025205,4]
[326496625,1715009474674,-1326.88,0.00025205,4]
[326496626,1715009474684,-500.0,0.00025205,4]
[326496627,1715009474695,-670.56,0.00025205,4]
[326496628,1715009474705,-1084.01,0.00025205,4]
[326496629,1715009474726,-554.6,0.00025205,4]
[326496630,1715009474737,-1373.27,0.00025205,4]
[326496631,1715009474748,-500.0,0.00025205,4]
[326496632,1715009474759,-3000.0,0.00025205,3]
[326496633,1715009474773,-1139.32,0.00025205,4]
[326496634,1715009474783,-994.66,0.00025205,4]
[326496635,1715009474794,-500.0,0.00025205,4]
[326496636,1715009474805,-2128.88,0.00025205,4]
[326496637,1715009474816,-549.74,0.00025205,4]
[326496638,1715009474827,-1465.55,0.00025205,4]
[326496639,1715009474837,-890.02,0.00025205,4]
[326496640,1715009474850,-1932.04,0.00025205,4]
[326496641,1715009474861,-2846.98,0.00025205,4]
[326496642,1715009474872,-1124.82,0.00025205,4]
[326496643,1715009474882,-1819.88,0.00025205,4]
[326496644,1715009474892,-500.0,0.00025205,4]
[326496645,1715009474903,-2178.06,0.00025205,4]
[326496646,1715009474913,-837.75,0.00025205,4]
[326496647,1715009474923,-772.42,0.00025205,4]
[326496648,1715009474933,-1572.83,0.00025205,4]
[326496649,1715009474943,-652.45,0.00025205,4]
[326496650,1715009474954,-510.65338061,0.00025205,4]
[326496651,1715009474964,-500.0,0.00025205,4]
[326496652,1715009474975,-620.62,0.00025205,4]
[326496653,1715009474985,-1891.22,0.00025205,4]
[326496654,1715009474996,-2017.32,0.00025205,4]
[326496655,1715009475007,-1123.67,0.00025205,4]
[326496656,1715009475017,-1112.26,0.00025205,4]
[326496657,1715009475028,-579.7,0.00025205,4]
[326496658,1715009475039,-500.0,0.00025205,4]
[326496659,1715009475050,-963.92,0.00025205,4]
[326496660,1715009475060,-751.76,0.00025205,4]
[326496661,1715009475073,-1479.04,0.00025205,4]
[326496662,1715009475084,-500.0,0.00025205,4]
[326496663,1715009475094,-2922.7,0.00025205,4]
[326496664,1715009475104,-645.61,0.00025205,4]
[326496665,1715009475115,-2260.98,0.00025205,4]
[326496666,1715009475125,-736.11,0.00025205,4]
[326496667,1715009475135,-1817.46,0.00025205,4]
[326496668,1715009475147,-1628.53,0.00025205,4]
[326496669,1715009475158,-500.0,0.00025205,4]
[326496670,1715009475168,-500.0,0.00025205,4]
[326496671,1715009475178,-500.0,0.00025205,4]
[326496672,1715009475190,-960.36,0.00025205,4]
[326496673,1715009475205,-500.0,0.00025205,4]
[326496674,1715009475215,-1199.63,0.00025205,4]
[326496675,1715009475225,-500.0,0.00025205,4]
[326496676,1715009475237,-500.0,0.00025205,4]
[326496677,1715009475247,-1796.92,0.00025205,4]
[326496678,1715009475256,-1517.46,0.00025205,4]
[326496679,1715009475267,-500.0,0.00025205,4]
[326496680,1715009475277,-500.0,0.00025205,4]
[326496681,1715009475287,-500.0,0.00025205,4]
[326496682,1715009475298,-1231.39,0.00025205,4]
[326496683,1715009475309,-2510.07,0.00025205,2]
[326496684,1715009475319,-1455.58,0.00025205,4]
[326496685,1715009475329,-500.0,0.00025205,4]
[326496686,1715009475340,-589.42,0.00025205,4]
[326496687,1715009475350,-1574.83,0.00025205,4]
[326496688,1715009475360,-691.64,0.00025205,4]
[326496689,1715009475370,-300.0,0.00025205,4]
[326496690,1715009475381,-1655.38,0.00025205,4]
[326496691,1715009475391,-2497.22,0.00025205,4]
[326496692,1715009475404,-516.42,0.00025205,4]
[326496693,1715009475418,-862.46,0.00025205,4]
[326496694,1715009475429,-613.38446999,0.00025205,4]
[326496695,1715009475440,-3493.19,0.00025205,4]
[326496696,1715009475451,-500.0,0.00025205,4]
[326496697,1715009475461,-393.74249155,0.00025205,4]
[326496698,1715009475472,-1028.01,0.00025205,4]
[326496699,1715009475482,-734.87,0.00025205,4]
[326496700,1715009475495,-1131.07,0.00025205,4]
[326496701,1715009475507,-1653.21,0.00025205,4]
[326496702,1715009475518,-1412.29,0.00025205,4]
[326496703,1715009475528,-1208.08,0.00025205,4]
[326496704,1715009475538,-500.0,0.00025205,4]
[326496705,1715009475549,-500.0,0.00025205,4]
[326496706,1715009475559,-1214.26,0.00025205,4]
[326496707,1715009475570,-500.0,0.00025205,4]
[326496708,1715009475580,-500.0,0.00025205,4]
[326496709,1715009475590,-761.52,0.00025205,4]
[326496710,1715009475600,-744.96,0.00025205,4]
[326496711,1715009475610,-500.0,0.00025205,4]
[326496712,1715009475621,-681.7,0.00025205,4]
[326496713,1715009475632,-592.31,0.00025205,4]
[326496714,1715009475642,-682.42,0.00025205,4]
[326496715,1715009475653,-500.0,0.00025205,4]
[326496716,1715009475663,-1193.03,0.00025205,4]
[326496717,1715009475674,-500.0,0.00025205,4]
[326496718,1715009475685,-500.0,0.00025205,4]
[326496719,1715009475696,-500.0,0.00025205,4]
[326496720,1715009475706,-831.06,0.00025205,4]
[326496721,1715009475717,-500.0,0.00025205,4]
[326496722,1715009475728,-1740.2,0.00025205,4]
[326496723,1715009475742,-998.24,0.00025205,4]
[326496724,1715009475754,-1038.76,0.00025205,4]
[326496725,1715009475767,-500.0,0.00025205,4]
[326496726,1715009475778,-500.0,0.00025205,2]
[326496727,1715009475788,-500.0,0.00025205,4]
[326496728,1715009475799,-2503.63,0.00025205,4]
[326496729,1715009475811,-500.0,0.00025205,4]
[326496730,1715009475822,-500.0,0.00025205,4]
[326496731,1715009475833,-523.27,0.00025205,4]
[326496732,1715009475845,-518.41,0.00025205,4]
[326496733,1715009475856,-501.35,0.00025205,4]
[326496734,1715009475867,-500.0,0.00025205,4]
[326496735,1715009475878,-629.6,0.00025205,4]
[326496736,1715009475891,-649.94,0.00025205,4]
[326496737,1715009475901,-500.0,0.00025205,4]
[326496738,1715009475912,-779.53,0.00025205,4]
[326496739,1715009475924,-500.0,0.00025205,4]
[326496740,1715009475934,-500.0,0.00025205,4]
[326496741,1715009475945,-1267.21,0.00025205,4]
[326496742,1715009475956,-500.0,0.00025205,4]
[326496743,1715009475966,-732.49,0.00025205,4]
[326496744,1715009475977,-1866.13,0.00025205,4]
[326496745,1715009475991,-500.0,0.00025205,4]
[326496746,1715009476003,-1139.05,0.00025205,4]
[326496747,1715009476014,-500.0,0.00025205,4]
[326496748,1715009476026,-1996.58,0.00025205,4]
[326496749,1715009476036,-554.47,0.00025205,4]
[326496750,1715009476051,-500.0,0.00025205,4]
[326496751,1715009476062,-526.42,0.00025205,4]
[326496752,1715009476074,-500.0,0.00025205,4]
[326496753,1715009476085,-2928.16,0.00025205,4]
[326496754,1715009476096,-500.0,0.00025205,4]
[326496755,1715009476107,-500.0,0.00025205,4]
[326496756,1715009476118,-839.38,0.00025205,4]
[326496757,1715009476129,-500.0,0.00025205,4]
[326496758,1715009476140,-719.04,0.00025205,4]
[326496759,1715009476151,-500.0,0.00025205,4]
[326496760,1715009476161,-606.29,0.00025205,4]
[326496761,1715009476172,-500.0,0.00025205,4]
[326496762,1715009476182,-1935.71,0.00025205,4]
[326496763,1715009476192,-500.0,0.00025205,4]
[326496764,1715009476203,-2073.82,0.00025205,4]
[326496765,1715009476214,-1247.5,0.00025205,4]
[326496766,1715009476224,-814.85,0.00025205,4]
[326496767,1715009476235,-2650.88,0.00025205,4]
[326496768,1715009476249,-645.49,0.00025205,4]
[326496769,1715009476260,-500.0,0.00025205,4]
[326496770,1715009476270,-500.0,0.00025205,4]
[326496771,1715009476280,-541.61,0.00025205,4]
[326496772,1715009476290,-511.72,0.00025205,4]
[326496773,1715009476300,-500.0,0.00025205,4]
[326496774,1715009476310,-1087.06,0.00025205,4]
[326496775,1715009476320,-7196.3,0.00025205,4]
[326496776,1715009476332,-1228.65,0.00025205,4]
[326496777,1715009476342,-1967.21,0.00025205,4]
[326496778,1715009476353,-500.0,0.00025205,4]
[326496779,1715009476363,-1159.53,0.00025205,4]
[326496780,1715009476374,-500.0,0.00025205,4]
[326496781,1715009476384,-630.47,0.00025205,4]
[326496782,1715009476395,-500.0,0.00025205,4]
[326496783,1715009476407,-555.84,0.00025205,4]
[326496784,1715009476417,-1796.48,0.00025205,4]
[326496785,1715009476428,-840.15,0.00025205,4]
[326496786,1715009476438,-934.08,0.00025205,4]
[326496787,1715009476448,-1640.34,0.00025205,4]
[326496788,1715009476459,-500.0,0.00025205,4]
[326496789,1715009476470,-513.69,0.00025205,4]
[326496790,1715009476480,-500.0,0.00025205,4]
[326496791,1715009476495,-695.62,0.00025205,4]
[326496792,1715009476505,-500.0,0.00025205,4]
[326496793,1715009476516,-1344.41,0.00025205,4]
[326496794,1715009476527,-500.0,0.00025205,4]
[326496795,1715009476538,-1185.26,0.00025205,4]
[326496796,1715009476550,-1900.56,0.00025205,4]
[326496797,1715009476561,-755.3,0.00025205,4]
[326496798,1715009476571,-665.94,0.00025205,4]
[326496799,1715009476582,-500.0,0.00025205,4]
[326496800,1715009476592,-1278.15,0.00025205,4]
[326496801,1715009476603,-500.0,0.00025205,4]
[326496802,1715009476614,-500.0,0.00025205,4]
[326496803,1715009476625,-517.3,0.00025205,4]
[326496804,1715009476635,-16580.38,0.00025205,4]
[326496805,1715009476646,-3483.4,0.00025205,4]
[326496806,1715009476656,-500.0,0.00025205,4]
[326496807,1715009476667,-1339.23,0.00025205,4]